bitfinex/quotes_BTCUSD_20240731
["timestamp","ask_amount","ask_price","bid_price","bid_amount"]
[1722395710419,0.25426382,66348.0,66347.0,0.50108]
[1722395710778,0.24455268,66348.0,66347.0,0.50123998]
[1722395711538,0.06337,66348.0,66347.0,0.50123998]
[1722395711764,0.2449449,66348.0,66347.0,0.50108]
[1722395711963,0.2449449,66348.0,66347.0,0.50123998]
[1722395712201,0.2449449,66348.0,66347.0,0.19979498]
[1722395712415,0.2449449,66348.0,66347.0,0.199635]
[1722395712618,0.2449449,66348.0,66347.0,0.50108]
[1722395712923,0.25465604,66348.0,66347.0,0.50108]
[1722395714207,0.25465604,66348.0,66347.0,0.048913]
[1722395714468,0.33685604,66348.0,66347.0,0.048913]
[1722395714879,0.14557,66348.0,66347.0,0.04907298]
[1722395715077,0.32695839,66348.0,66347.0,0.04907298]
[1722395715278,0.28069558,66348.0,66347.0,0.04907298]
[1722395715431,0.32695869,66348.0,66347.0,0.048913]
[1722395715641,0.33667282,66348.0,66347.0,0.04907298]
[1722395716066,0.33667282,66348.0,66347.0,0.19979498]
[1722395716414,0.33667282,66348.0,66347.0,0.048913]
[1722395716595,0.33667282,66348.0,66347.0,0.04907298]
[1722395716996,0.33667282,66348.0,66347.0,0.50123998]
[1722395717212,0.3367413,66348.0,66347.0,0.199635]
[1722395717780,0.20161425,66348.0,66347.0,0.199635]
[1722395717941,0.19190012,66348.0,66347.0,0.199635]
[1722395718143,0.24504347,66348.0,66347.0,0.50108]
[1722395718417,0.29158784,66348.0,66347.0,0.50108]
[1722395718794,0.30130197,66348.0,66347.0,0.50108]
[1722395721484,0.11962848,66348.0,66347.0,0.50108]
[1722395721655,0.30178718,66348.0,66347.0,0.50108]
[1722395721858,0.28869829,66348.0,66347.0,0.50108]
[1722395722049,0.29840383,66348.0,66347.0,0.50108]
[1722395723416,0.16326162,66348.0,66347.0,0.50108]
[1722395724865,0.16295292,66348.0,66347.0,0.50108]
[1722395725187,0.11624513,66348.0,66347.0,0.50108]
[1722395725445,0.16286088,66348.0,66347.0,0.50108]
[1722395725642,0.15398534,66348.0,66347.0,0.50108]
[1722395725819,0.16369088,66348.0,66347.0,0.50108]
[1722395727128,0.16368216,66348.0,66347.0,0.50108]
[1722395727932,0.11713781,66348.0,66347.0,0.50108]
[1722395728134,0.11715168,66348.0,66347.0,0.199635]
[1722395729083,0.11715168,66348.0,66347.0,0.048913]
[1722395729446,0.11715168,66348.0,66347.0,0.199635]
[1722395730947,0.80084114,66348.0,66347.0,0.048913]
[1722395731147,1.10565564,66348.0,66347.0,0.048913]
[1722395731383,1.20837078,66348.0,66347.0,0.048913]
[1722395731584,1.33562472,66348.0,66347.0,0.048913]
[1722395731730,1.48631904,66348.0,66347.0,0.048913]
[1722395733159,1.48631904,66348.0,66347.0,0.034913]
[1722395733368,1.48631904,66348.0,66347.0,0.020913]
[1722395733369,1.78775904,66348.0,66347.0,0.020913]
[1722395733522,1.81075904,66348.0,66347.0,0.034913]
[1722395734153,1.81075904,66348.0,66347.0,0.023913]
[1722395734364,1.51821657,66348.0,66347.0,0.020913]
[1722395734564,1.24026831,66348.0,66347.0,0.025913]
[1722395734762,1.36890976,66348.0,66347.0,0.025913]
[1722395734983,1.24026831,66348.0,66347.0,0.020913]
[1722395735192,1.36790683,66348.0,66347.0,0.020913]
[1722395736596,1.36990683,66348.0,66347.0,0.020913]
[1722395736796,1.36790683,66348.0,66347.0,0.020913]
[1722395737170,1.37090683,66348.0,66347.0,0.020913]
[1722395737417,1.13296683,66348.0,66347.0,0.020913]
[1722395737620,1.04395414,66348.0,66347.0,0.020913]
[1722395737961,0.7425685,66348.0,66347.0,0.020913]
[1722395738164,0.6560685,66348.0,66347.0,0.020913]
[1722395738367,0.6520685,66348.0,66347.0,0.020913]
[1722395738880,0.5692685,66348.0,66347.0,0.020913]
[1722395739911,0.5692685,66348.0,66347.0,0.022913]
[1722395740239,0.5692685,66348.0,66347.0,0.020913]
[1722395740447,0.5692685,66348.0,66347.0,0.025913]
[1722395741041,0.05711326,66348.0,66347.0,0.48208]
[1722395741248,0.05711326,66348.0,66347.0,0.180635]
[1722395741249,0.05753271,66348.0,66347.0,0.180635]
[1722395741452,0.04782717,66348.0,66347.0,0.180635]
[1722395741807,0.05741986,66348.0,66347.0,0.180635]
[1722395742007,0.05741986,66348.0,66347.0,0.029913]
[1722395742348,0.05741986,66348.0,66347.0,0.0314672]
[1722395742626,0.05741986,66348.0,66347.0,0.1821892]
[1722395742829,0.05741986,66348.0,66347.0,0.180635]
[1722395743060,0.34933986,66348.0,66347.0,0.029913]
[1722395743267,0.65077986,66348.0,66347.0,0.029913]
[1722395743416,1.03871986,66348.0,66347.0,0.029913]
[1722395743818,1.19047825,66348.0,66347.0,0.029913]
[1722395744196,0.88903825,66348.0,66347.0,0.029913]
[1722395744424,0.69028269,66348.0,66347.0,0.029913]
[1722395744627,0.88891051,66348.0,66347.0,0.029913]
[1722395744867,0.73711023,66348.0,66347.0,0.029913]
[1722395745070,0.88891314,66348.0,66347.0,0.029913]
[1722395745368,0.73711092,66348.0,66347.0,0.029913]
[1722395745541,0.28495092,66348.0,66347.0,0.029913]
[1722395745744,0.31244269,66348.0,66347.0,0.029913]
[1722395745942,0.66070353,66348.0,66347.0,0.029913]
[1722395746345,0.72600975,66348.0,66347.0,0.029913]
[1722395746892,0.52738269,66348.0,66347.0,0.029913]
[1722395747102,0.72605261,66348.0,66347.0,0.029913]
[1722395747874,0.52738269,66348.0,66347.0,0.029913]
[1722395748062,0.57429617,66348.0,66347.0,0.029913]
[1722395748425,0.27285617,66348.0,66347.0,0.029913]
[1722395749634,0.57429617,66348.0,66347.0,0.029913]
[1722395750025,0.05733617,66348.0,66347.0,0.029913]
[1722395750773,0.20805617,66348.0,66347.0,0.029913]
[1722395751198,0.05723093,66348.0,66347.0,0.029913]
[1722395751393,0.20795093,66348.0,66347.0,0.029913]
[1722395752104,0.50939093,66348.0,66347.0,0.029913]
[1722395752533,1.14430176,66348.0,66347.0,0.029913]
[1722395752735,1.37148827,66348.0,66347.0,0.029913]
[1722395753468,1.37148827,66348.0,66347.0,0.024913]
[1722395753855,1.37148827,66348.0,66347.0,0.027913]
[1722395754055,1.45220599,66348.0,66347.0,0.027913]
[1722395754250,1.45220599,66348.0,66347.0,0.023913]
[1722395754459,1.45172805,66348.0,66347.0,0.023913]
[1722395754832,1.32468003,66348.0,66347.0,0.023913]
[1722395755039,1.32468003,66348.0,66347.0,0.024913]
[1722395755040,1.45172779,66348.0,66347.0,0.024913]
[1722395756394,1.46075911,66348.0,66347.0,0.024913]
[1722395756794,1.46106437,66348.0,66347.0,0.024913]
[1722395757396,1.03960703,66348.0,66347.0,0.024913]
[1722395757601,1.12610703,66348.0,66347.0,0.024913]
[1722395757802,1.12629612,66348.0,66347.0,0.024913]
[1722395763399,1.08052736,66348.0,66347.0,0.024913]
[1722395763593,1.12772395,66348.0,66347.0,0.024913]
[1722395763831,0.99875401,66348.0,66347.0,0.024913]
[1722395764023,1.25859235,66348.0,66347.0,0.024913]
[1722395765389,1.12772415,66348.0,66347.0,0.024913]
[1722395765502,1.05012415,66348.0,66347.0,0.024913]
[1722395765703,1.04961675,66348.0,66347.0,0.024913]
[1722395765909,0.68657675,66348.0,66347.0,0.024913]
[1722395766109,0.68657675,66348.0,66347.0,0.1072672]
[1722395766110,0.21834251,66348.0,66347.0,0.1072672]
[1722395766446,0.21834251,66348.0,66347.0,0.105713]
[1722395766447,0.05679815,66348.0,66347.0,0.105713]
[1722395766646,0.05721533,66348.0,66347.0,0.1072672]
[1722395766855,0.06509803,66348.0,66347.0,0.1072672]
[1722395767501,0.06509803,66348.0,66347.0,0.105713]
[1722395767730,0.21581803,66348.0,66347.0,0.1072672]
[1722395768098,0.06509803,66348.0,66347.0,0.1072672]
[1722395768503,0.21705978,66348.0,66347.0,0.1072672]
[1722395769689,0.36777978,66348.0,66347.0,0.1072672]
[1722395770050,0.3676599,66348.0,66347.0,0.105713]
[1722395771249,0.2169399,66348.0,66347.0,0.105713]
[1722395772261,0.06497815,66348.0,66347.0,0.105713]
[1722395772494,0.21569815,66348.0,66347.0,0.105713]
[1722395772770,0.21702611,66348.0,66347.0,0.105713]
[1722395772973,0.21569815,66348.0,66347.0,0.105713]
[1722395773380,0.06497815,66348.0,66347.0,0.105713]
[1722395773609,0.21569815,66348.0,66347.0,0.105713]
[1722395773829,0.21631894,66348.0,66347.0,0.105713]
[1722395773997,0.36703894,66348.0,66347.0,0.105713]
[1722395774403,0.36703894,66348.0,66347.0,0.104713]
[1722395774555,0.36703894,66348.0,66347.0,0.108713]
[1722395774983,0.36703894,66348.0,66347.0,0.115713]
[1722395775255,0.36706423,66348.0,66347.0,0.115713]
[1722395775419,0.51641437,66348.0,66347.0,0.108713]
[1722395775819,0.51641437,66348.0,66347.0,0.116713]
[1722395775820,0.66850317,66348.0,66347.0,0.116713]
[1722395776041,0.51641437,66348.0,66347.0,0.116713]
[1722395776412,0.51529403,66348.0,66347.0,0.116713]
[1722395777119,1.05400633,66348.0,66347.0,0.035913]
[1722395777313,1.35544633,66348.0,66347.0,0.035913]
[1722395777732,1.43566168,66348.0,66347.0,0.035913]
[1722395777944,1.45866168,66348.0,66347.0,0.035913]
[1722395778151,1.87010168,66348.0,66347.0,0.035913]
[1722395778319,2.08188398,66348.0,66347.0,0.035913]
[1722395778981,2.08188398,66348.0,66347.0,0.020913]
[1722395779410,1.87310168,66348.0,66347.0,0.020913]
[1722395779610,2.1299277,66348.0,66347.0,0.020913]
[1722395779809,1.82795792,66348.0,66347.0,0.020913]
[1722395780014,2.09556776,66348.0,66347.0,0.020913]
[1722395780210,2.03278006,66348.0,66347.0,0.020913]
[1722395783037,2.02998381,66348.0,66347.0,0.020913]
[1722395783500,2.25174098,66348.0,66347.0,0.020913]
[1722395785279,2.02993959,66348.0,66347.0,0.020913]
[1722395785483,2.25165679,66348.0,66347.0,0.020913]
[1722395786041,2.02916986,66348.0,66347.0,0.020913]
[1722395786247,2.25088674,66348.0,66347.0,0.020913]
[1722395786702,2.25088674,66348.0,66345.0,2.8]
[1722395786703,1.62342,66346.0,66345.0,2.8]
[1722395786909,1.89399354,66346.0,66345.0,2.7556321]
[1722395787077,1.89399354,66346.0,66345.0,2.71614768]
[1722395787078,2.32631357,66346.0,66345.0,2.71614768]
[1722395787245,2.47700789,66346.0,66345.0,2.71614768]
[1722395788063,2.47800789,66346.0,66345.0,2.71714768]
[1722395788501,2.47800789,66346.0,66345.0,2.67181325]
[1722395788819,2.47800789,66346.0,66345.0,2.61295707]
[1722395789375,2.47817797,66346.0,66345.0,2.57295789]
[1722395789580,2.47817797,66346.0,66345.0,2.52915591]
[1722395790005,2.47817797,66346.0,66345.0,2.41745411]
[1722395790265,2.93151059,66346.0,66345.0,1.46690841]
[1722395790456,2.93151059,66346.0,66345.0,0.92863968]
[1722395790457,4.07115952,66346.0,66345.0,0.92863968]
[1722395790866,4.02982697,66346.0,66345.0,0.92863968]
[1722395791064,4.02982697,66346.0,66345.0,0.77791468]
[1722395791267,4.03382697,66346.0,66345.0,0.74091468]
[1722395791471,4.02982697,66346.0,66345.0,0.73991468]
[1722395791672,4.02982697,66346.0,66345.0,0.73891468]
[1722395791881,4.03082697,66346.0,66345.0,0.70976968]
[1722395792088,4.03082697,66346.0,66345.0,0.64947968]
[1722395792268,4.03082697,66346.0,66345.0,0.56718968]
[1722395792477,3.91098335,66346.0,66345.0,0.56718968]
[1722395792664,4.03445201,66346.0,66345.0,0.21038968]
[1722395792902,3.91198335,66346.0,66345.0,0.18024468]
[1722395793100,4.0335617,66346.0,66345.0,0.05966468]
[1722395793214,4.0325617,66346.0,66345.0,0.00232468]
[1722395793427,1.525849,66330.0,66329.0,0.000913]
[1722395793654,2.19928609,66330.0,66329.0,0.000913]
[1722395793889,2.36473365,66330.0,66329.0,0.000913]
[1722395794155,2.38473365,66330.0,66329.0,0.000913]
[1722395794367,2.24995801,66330.0,66329.0,0.000913]
[1722395794513,2.39891335,66330.0,66329.0,0.000913]
[1722395794915,2.40991335,66330.0,66329.0,0.000913]
[1722395795732,2.41065266,66330.0,66329.0,0.000913]
[1722395796163,2.41765266,66330.0,66329.0,0.000913]
[1722395799121,2.4177764,66330.0,66329.0,0.000913]
[1722395800287,2.55225389,66330.0,66329.0,0.000913]
[1722395800491,2.4177764,66330.0,66329.0,0.000913]
[1722395802386,2.37349826,66330.0,66329.0,0.000913]
[1722395802524,2.42673428,66330.0,66329.0,0.000913]
[1722395802724,2.3826159,66330.0,66329.0,0.000913]
[1722395802931,2.50510015,66330.0,66329.0,0.000913]
[1722395805545,2.3826159,66330.0,66329.0,0.000913]
[1722395805752,2.50505909,66330.0,66329.0,0.000913]
[1722395805947,2.50505779,66330.0,66329.0,0.000913]
[1722395806473,2.656163,66330.0,66329.0,0.000913]
[1722395807477,2.50505779,66330.0,66329.0,0.000913]
[1722395809180,2.50584749,66330.0,66329.0,0.000913]
[1722395809583,2.49584749,66330.0,66329.0,0.000913]
[1722395809807,2.50584749,66330.0,66329.0,0.000913]
[1722395812399,2.42688053,66330.0,66329.0,0.000913]
[1722395812606,2.50586238,66330.0,66329.0,0.000913]
[1722395813013,2.50586249,66330.0,66329.0,0.000913]
[1722395813721,2.56632449,66330.0,66329.0,0.000913]
[1722395814135,2.15830249,66330.0,66329.0,0.000913]
[1722395814374,1.50812618,66330.0,66329.0,0.078913]
[1722395814577,1.37382515,66330.0,66329.0,0.139913]
[1722395814782,1.36470751,66330.0,66329.0,0.139913]
[1722395814992,1.51972703,66330.0,66329.0,0.139913]
[1722395815202,0.52222662,66330.0,66329.0,0.139913]
[1722395815408,0.86852901,66330.0,66329.0,0.139913]
[1722395815617,0.77947692,66330.0,66329.0,0.139913]
[1722395815820,0.91136833,66330.0,66329.0,0.139913]
[1722395816149,1.04832864,66330.0,66329.0,0.139913]
[1722395816549,1.07132864,66330.0,66329.0,0.139913]
[1722395816754,1.06432864,66330.0,66329.0,0.139913]
[1722395817179,1.02836833,66330.0,66329.0,0.139913]
[1722395817382,0.97257844,66330.0,66329.0,0.139913]
[1722395817592,0.97157844,66330.0,66329.0,0.139913]
[1722395817950,0.67505644,66330.0,66329.0,0.139913]
[1722395818155,0.67105644,66330.0,66329.0,0.139913]
[1722395818350,0.86235077,66330.0,66329.0,0.139913]
[1722395818709,0.86235077,66330.0,66329.0,0.140913]
[1722395818710,0.78096123,66330.0,66329.0,0.140913]
[1722395818916,0.73741047,66330.0,66329.0,0.140913]
[1722395819112,0.95862369,66330.0,66329.0,0.140913]
[1722395819319,0.65710169,66330.0,66329.0,0.140913]
[1722395819701,0.9258481,66330.0,66329.0,0.140913]
[1722395819906,0.3140241,66330.0,66329.0,0.140913]
[1722395820232,0.05248793,66330.0,66329.0,0.140913]
[1722395820405,0.20324893,66330.0,66329.0,0.140913]
[1722395820618,0.05248793,66330.0,66329.0,0.140913]
[1722395820824,0.50477093,66330.0,66329.0,0.140913]
[1722395821020,0.50377093,66330.0,66329.0,0.140913]
[1722395821201,0.46095492,66330.0,66329.0,0.140913]
[1722395821404,0.50473964,66330.0,66329.0,0.139913]
[1722395821609,0.50573964,66330.0,66329.0,0.139913]
[1722395821811,0.46195492,66330.0,66329.0,0.139913]
[1722395822129,0.50573968,66330.0,66329.0,0.139913]
[1722395823156,0.20321768,66330.0,66329.0,0.139913]
[1722395823584,0.24907414,66330.0,66329.0,0.139913]
[1722395823793,0.55059614,66330.0,66329.0,0.139913]
[1722395823994,0.54959614,66330.0,66329.0,0.139913]
[1722395824165,0.09831314,66330.0,66329.0,0.145913]
[1722395824576,0.09786073,66330.0,66329.0,0.145913]
[1722395825327,0.09786073,66330.0,66329.0,0.296676]
[1722395825328,0.00967192,66330.0,66329.0,0.296676]
[1722395825549,0.00967192,66330.0,66329.0,0.89973]
[1722395825978,0.002,66330.0,66329.0,0.89973]
[1722395826744,0.001,66330.0,66329.0,0.89973]
[1722395826950,0.002,66330.0,66329.0,0.598203]
[1722395827182,0.001,66330.0,66329.0,0.592203]
[1722395827526,0.04485646,66334.0,66333.0,0.1413]
[1722395827735,0.150746,66337.0,66334.0,0.081]
[1722395827982,0.06736418,66336.0,66334.0,0.081]
[1722395828554,0.06736418,66335.0,66334.0,0.081]
[1722395829147,0.06736418,66335.0,66334.0,0.087]
[1722395829567,0.24056691,66336.0,66334.0,0.087]
[1722395830514,0.08981891,66335.0,66334.0,0.087]
[1722395830719,0.24056791,66335.0,66334.0,0.087]
[1722395831140,0.150748,66336.0,66334.0,0.081]
[1722395831267,0.0907844,66335.0,66334.0,0.088]
[1722395831472,0.001,66335.0,66334.0,0.088]
[1722395831672,0.0907831,66335.0,66334.0,0.088]
[1722395832093,0.0917831,66335.0,66334.0,0.096]
[1722395832497,0.16038675,66335.0,66334.0,0.096]
[1722395832703,0.00963775,66335.0,66334.0,0.096]
[1722395832900,0.16038675,66335.0,66334.0,0.096]
[1722395834463,0.24794591,66335.0,66334.0,0.096]
[1722395834606,0.70532163,66335.0,66334.0,0.096]
[1722395837788,0.7041522,66335.0,66334.0,0.096]
[1722395837963,0.61659304,66335.0,66334.0,0.096]
[1722395838163,0.31509404,66335.0,66334.0,0.096]
[1722395838704,0.50442466,66335.0,66334.0,0.096]
[1722395841068,0.46188575,66335.0,66334.0,0.096]
[1722395841244,0.50474673,66335.0,66334.0,0.096]
[1722395841384,0.61691511,66335.0,66334.0,0.096]
[1722395841587,0.61659458,66335.0,66334.0,0.096]
[1722395842187,0.70839338,66335.0,66334.0,0.096]
[1722395842602,0.61658512,66335.0,66334.0,0.096]
[1722395843236,0.50456176,66335.0,66334.0,0.096]
[1722395843865,0.05231376,66335.0,66334.0,0.096]
[1722395844262,0.00963775,66335.0,66334.0,0.096]
[1722395844487,0.57213837,66335.0,66334.0,0.1569]
[1722395844690,0.27063902,66335.0,66334.0,0.1569]
[1722395844889,0.20334533,66335.0,66334.0,0.1569]
[1722395845347,0.29306543,66335.0,66334.0,0.1569]
[1722395845909,0.20334533,66335.0,66334.0,0.1569]
[1722395846494,0.59456443,66335.0,66334.0,0.1569]
[1722395846693,0.61698952,66335.0,66334.0,0.1569]
[1722395847313,0.50484433,66335.0,66334.0,0.1569]
[1722395847554,0.61707276,66335.0,66334.0,0.1569]
[1722395847677,0.61707221,66335.0,66334.0,0.1569]
[1722395848534,0.50490335,66335.0,66334.0,0.1569]
[1722395850216,0.59900385,66335.0,66334.0,0.1569]
[1722395850878,0.59902656,66335.0,66334.0,0.1569]
[1722395851290,0.59902676,66335.0,66334.0,0.1569]
[1722395851690,0.59902676,66335.0,66334.0,0.096]
[1722395852141,0.60002675,66335.0,66334.0,0.096]
[1722395852508,0.50492626,66335.0,66334.0,0.096]
[1722395852710,0.50492626,66335.0,66334.0,0.699156]
[1722395852711,0.16494824,66335.0,66334.0,0.699156]
[1722395852940,0.12004422,66335.0,66334.0,1.00066]
[1722395853140,0.08995292,66335.0,66334.0,1.00066]
[1722395853756,0.08795292,66335.0,66334.0,0.98466]
[1722395853957,0.04404051,66335.0,66334.0,0.99866]
[1722395854163,0.09047674,66335.0,66334.0,1.00766]
[1722395854337,0.04555843,66335.0,66334.0,1.00766]
[1722395855462,0.1129359,66335.0,66334.0,1.00766]
[1722395856536,0.04555843,66335.0,66334.0,1.00766]
[1722395856742,0.04555843,66335.0,66334.0,1.01648655]
[1722395857345,0.002,66335.0,66334.0,1.01648655]
[1722395857545,0.09194727,66335.0,66334.0,1.01648655]
[1722395857820,0.1356144,66335.0,66334.0,1.01648655]
[1722395858600,0.04566713,66335.0,66334.0,1.01648655]
[1722395860750,0.002,66335.0,66334.0,1.01648655]
[1722395861368,0.04524291,66335.0,66334.0,1.01648655]
[1722395861723,0.04524291,66335.0,66334.0,0.92998655]
[1722395861929,0.04524291,66335.0,66334.0,1.01648655]
[1722395863516,0.002,66335.0,66334.0,1.01648655]
[1722395865470,0.04512951,66335.0,66334.0,1.01648655]
[1722395866161,0.002,66335.0,66334.0,1.00766]
[1722395866339,0.002,66335.0,66334.0,0.706156]
[1722395866711,0.04447699,66335.0,66334.0,1.00766]
[1722395867366,0.002,66335.0,66334.0,0.619656]
[1722395867696,0.04419528,66335.0,66334.0,0.619656]
[1722395868096,0.04419528,66335.0,66334.0,0.318152]
[1722395868294,0.04519527,66335.0,66334.0,0.318152]
[1722395868553,0.17940096,66335.0,66334.0,0.318152]
[1722395870747,0.04455368,66335.0,66334.0,0.318152]
[1722395871169,0.002,66335.0,66334.0,0.318152]
[1722395871716,0.002,66335.0,66334.0,0.253752]
[1722395872199,0.04464917,66335.0,66334.0,0.253752]
[1722395873204,0.04448041,66335.0,66334.0,0.253752]
[1722395874043,0.002,66335.0,66334.0,0.103]
[1722395874554,0.002,66335.0,66334.0,0.253752]
[1722395874739,0.04467421,66335.0,66334.0,0.253752]
[1722395874955,0.04467421,66335.0,66334.0,0.103]
[1722395877491,0.04471535,66335.0,66334.0,0.103]
[1722395878779,0.38097322,66335.0,66334.0,0.023]
[1722395879153,0.96936235,66335.0,66334.0,0.023]
[1722395880811,0.96922642,66335.0,66334.0,0.023]
[1722395881297,0.926647,66335.0,66334.0,0.023]
[1722395881502,0.96926139,66335.0,66334.0,0.023]
[1722395881919,0.96826139,66335.0,66334.0,0.009]
[1722395882093,0.96826139,66335.0,66334.0,0.012]
[1722395882315,0.96944283,66335.0,66334.0,0.012]
[1722395882495,0.452283,66330.0,66329.0,0.000913]
[1722395882708,0.51789739,66330.0,66329.0,0.000913]
[1722395883085,1.10123033,66330.0,66329.0,0.000913]
[1722395883668,1.10223033,66330.0,66329.0,0.009913]
[1722395885047,1.10123033,66330.0,66329.0,0.000913]
[1722395885246,1.10223033,66330.0,66329.0,0.009913]
[1722395885699,1.40375233,66330.0,66329.0,0.009913]
[1722395886200,1.49025233,66330.0,66329.0,0.009913]
[1722395886392,1.56752413,66330.0,66329.0,0.009913]
[1722395886817,1.86904613,66330.0,66329.0,0.009913]
[1722395887178,1.87904613,66330.0,66329.0,0.009913]
[1722395887378,1.86904613,66330.0,66329.0,0.009913]
[1722395887909,1.87904613,66330.0,66329.0,0.009913]
[1722395888112,1.97904613,66330.0,66329.0,0.009913]
[1722395889086,1.97804613,66330.0,66329.0,0.000913]
[1722395889499,1.86815994,66330.0,66329.0,0.002913]
[1722395889719,1.86815994,66330.0,66329.0,0.001913]
[1722395889720,2.02882876,66330.0,66329.0,0.001913]
[1722395889920,1.978869,66330.0,66329.0,0.000913]
[1722395891378,1.999869,66330.0,66329.0,0.002913]
[1722395891583,1.999869,66330.0,66329.0,0.001913]
[1722395891932,2.003869,66330.0,66329.0,0.001913]
[1722395892372,2.013869,66330.0,66329.0,0.002913]
[1722395892799,1.89315994,66330.0,66329.0,0.002913]
[1722395892916,2.01400468,66330.0,66329.0,0.002913]
[1722395893112,1.89315994,66330.0,66329.0,0.002913]
[1722395893313,2.01378891,66330.0,66329.0,0.002913]
[1722395895112,2.01366358,66330.0,66329.0,0.002913]
[1722395895273,2.0225005,66330.0,66329.0,0.002913]
[1722395895791,2.3240225,66330.0,66329.0,0.002913]
[1722395895955,2.20351886,66330.0,66329.0,0.002913]
[1722395896174,2.32385801,66330.0,66329.0,0.002913]
[1722395896605,2.49285801,66330.0,66329.0,0.002913]
[1722395897279,2.48285801,66330.0,66329.0,0.002913]
[1722395898057,2.50285801,66330.0,66329.0,0.002913]
[1722395899010,2.80438001,66330.0,66329.0,0.002913]
[1722395899203,1.51027,66324.0,66323.0,0.000913]
[1722395899447,1.84010915,66324.0,66323.0,0.000913]
[1722395899619,2.14165815,66324.0,66323.0,0.000913]
[1722395901410,2.14665815,66324.0,66323.0,0.000913]
[1722395901587,2.32765815,66324.0,66323.0,0.000913]
[1722395901788,2.77990147,66324.0,66323.0,0.000913]
[1722395902573,2.65956232,66324.0,66323.0,0.000913]
[1722395902813,2.77812938,66324.0,66323.0,0.000913]
[1722395903190,2.77812938,66324.0,66310.0,0.000913]
[1722395903191,1.847849,66311.0,66310.0,0.000913]
[1722395903393,2.37231417,66311.0,66310.0,0.000913]
[1722395903748,2.47247091,66311.0,66310.0,0.000913]
[1722395904374,2.47347091,66311.0,66310.0,0.003913]
[1722395904571,2.47447091,66311.0,66310.0,0.004913]
[1722395904975,2.47347091,66311.0,66310.0,0.003913]
[1722395905384,1.68902,66304.0,66293.0,0.000913]
[1722395905557,0.485227,66301.0,66293.0,0.000913]
[1722395905754,1.72038976,66301.0,66293.0,0.000913]
[1722395905977,1.90554376,66301.0,66293.0,0.000913]
[1722395906180,2.17273808,66301.0,66293.0,0.000913]
[1722395906382,2.09500832,66301.0,66293.0,0.000913]
[1722395906619,2.17336749,66301.0,66293.0,0.000913]
[1722395906910,2.47502149,66301.0,66293.0,0.000913]
[1722395907199,2.38852149,66301.0,66293.0,0.000913]
[1722395907639,2.40252149,66301.0,66293.0,0.000913]
[1722395907847,2.40152149,66301.0,66293.0,0.000913]
[1722395908000,2.41552149,66301.0,66293.0,0.000913]
[1722395908992,2.29419132,66301.0,66293.0,0.000913]
[1722395909216,2.41624091,66301.0,66293.0,0.000913]
[1722395909588,2.50799165,66301.0,66293.0,0.000913]
[1722395909789,2.4272612,66301.0,66293.0,0.000913]
[1722395910148,2.32485275,66301.0,66293.0,0.000913]
[1722395910357,2.3778883,66301.0,66293.0,0.000913]
[1722395910557,2.31990473,66301.0,66293.0,0.000913]
[1722395910733,2.34790473,66301.0,66293.0,0.000913]
[1722395910936,2.40094028,66301.0,66293.0,0.000913]
[1722395911137,2.38694028,66301.0,66293.0,0.000913]
[1722395911352,2.33390473,66301.0,66293.0,0.000913]
[1722395911562,2.34690473,66301.0,66293.0,0.000913]
[1722395911961,2.32690473,66301.0,66293.0,0.000913]
[1722395912261,2.34690473,66301.0,66293.0,0.000913]
[1722395912445,2.34690473,66301.0,66300.0,1e-06]
[1722395912446,2.6048973,66301.0,66300.0,1e-06]
[1722395912645,2.6048973,66301.0,66293.0,1e-06]
[1722395912646,1.687887,66294.0,66293.0,1e-06]
[1722395912845,2.027687,66294.0,66293.0,1e-06]
[1722395913067,2.84431944,66294.0,66293.0,1e-06]
[1722395913267,2.75497947,66294.0,66293.0,1e-06]
[1722395913474,2.82195393,66294.0,66293.0,1e-06]
[1722395913730,3.02114747,66294.0,66293.0,1e-06]
[1722395913925,3.07013478,66294.0,66293.0,1e-06]
[1722395914129,2.70147167,66294.0,66293.0,1e-06]
[1722395914552,2.71347167,66294.0,66293.0,1e-06]
[1722395915167,2.72747167,66294.0,66293.0,1e-06]
[1722395915508,2.72878085,66294.0,66293.0,1e-06]
[1722395915711,2.67979619,66294.0,66293.0,1e-06]
[1722395916135,2.63129697,66294.0,66293.0,1e-06]
[1722395917161,2.61129697,66294.0,66293.0,1e-06]
[1722395917306,2.55135713,66294.0,66293.0,1e-06]
[1722395917948,2.63125711,66294.0,66293.0,1e-06]
[1722395918369,2.55135713,66294.0,66293.0,1e-06]
[1722395918993,2.55116475,66294.0,66293.0,1e-06]
[1722395919198,2.63080124,66294.0,66293.0,1e-06]
[1722395919400,2.55116475,66294.0,66293.0,1e-06]
[1722395920247,2.56036961,66294.0,66293.0,1e-06]
[1722395920447,2.64622471,66294.0,66293.0,1e-06]
[1722395921546,2.56641861,66294.0,66293.0,1e-06]
[1722395921731,2.64627518,66294.0,66293.0,1e-06]
[1722395922519,2.64606127,66294.0,66293.0,1e-06]
[1722395922910,2.52132118,66294.0,66293.0,1e-06]
[1722395923204,2.64606778,66294.0,66293.0,1e-06]
[1722395924762,2.64572725,66294.0,66293.0,1e-06]
[1722395925568,2.52132118,66294.0,66293.0,1e-06]
[1722395925789,2.64576205,66294.0,66293.0,1e-06]
[1722395927267,2.51576205,66294.0,66293.0,1e-06]
[1722395928998,2.47088634,66294.0,66293.0,1e-06]
[1722395929215,2.51564394,66294.0,66293.0,1e-06]
[1722395930284,2.5646286,66294.0,66293.0,1e-06]
[1722395930657,2.56444707,66294.0,66293.0,1e-06]
[1722395930866,2.61294629,66294.0,66293.0,1e-06]
[1722395931259,3.04483229,66294.0,66293.0,1e-06]
[1722395931459,3.13422976,66294.0,66293.0,1e-06]
[1722395931875,1.38744547,66292.0,66291.0,0.000913]
[1722395932074,2.00356952,66292.0,66291.0,0.000913]
[1722395932302,2.03395211,66292.0,66291.0,0.000913]
[1722395932505,2.03268601,66292.0,66291.0,0.000913]
[1722395932777,2.48507533,66292.0,66291.0,0.000913]
[1722395933012,2.48507531,66292.0,66291.0,0.000913]
[1722395933430,2.57455696,66292.0,66291.0,0.000913]
[1722395933555,1.61117047,66281.0,66280.0,0.009339]
[1722395933761,2.22492143,66281.0,66280.0,0.009339]
[1722395934216,2.52666643,66281.0,66280.0,0.009339]